[Event "106th British-ch Major 2019"]
[Site "Torquay"]
[Date "2019.08.03"]
[Round "8.12"]
[White "Modi, Kishan Jagdish"]
[Black "Sugden, John N"]
[Result "1/2-1/2"]
[ECO "B41"]
[WhiteElo "1923"]
[BlackElo "2068"]
[Annotator "NA"]
[PlyCount "107"]
[EventDate "2019.07.27"]
[EventType "swiss"]
[EventCountry "GBR"]
[SourceTitle "playchess.com"]
[Source "ChessBase"]
[SourceQuality "1"]
[TimeControl "40/5400+30:1800+30"]

1. e4 {[%emt 0:00:00]} c5 {[%emt 0:00:00]} 2. Nf3 {[%emt 0:00:00]} e6 {[%emt 0:00:00]} 3. d4 {[%emt 0:00:01]} cxd4 {[%emt 0:00:07]} 4. Nxd4 {[%emt 0:00:12]} a6 {[%emt 0:00:24]} 5. c4 {[%emt 0:00:12]} Nf6 {[%emt 0:00:18]} 6. Nc3 {[%emt 0:00:13]} Bb4 {[%emt 0:00:18]} 7. Qd3 {[%emt 0:00:10]} d5 {[%emt 0:01:49]} 8. exd5 {[%emt 0:00:27]} exd5 {[%emt 0:01:28]} 9. Be2 {[%emt 0:00:23]} O-O {[%emt 0:10:22]} 10. O-O {[%emt 0:00:20]} dxc4 {[%emt 0:06:50]} 11. Qxc4 {[%emt 0:00:18]} Be7 {[%emt 0:01:10]} 12. Rd1 {[%emt 0:11:49]} b5 {[%emt 0:15:51]} 13. Qb3 {[%emt 0:01:02]} Qc7 {[%emt 0:09:37]} 14. Bf3 {[%emt 0:12:08]} Bb7 {[%emt 0:09:28]} 15. Ndxb5 {[%emt 0:03:59]} axb5 {[%emt 0:00:35]} 16. Nxb5 {[%emt 0:00:28]} Qb6 {[%emt 0:04:54]} 17. Be3 {[%emt 0:00:36]} Qa6 {[%emt 0:01:26]} 18. Nc7 {[%emt 0:02:06]} Bxf3 {[%emt 0:00:46]} 19. Nxa6 {[%emt 0:01:12]} Bxd1 {[%emt 0:00:41]} 20. Rxd1 {[%emt 0:01:45]} Nxa6 {[%emt 0:02:09]} 21. Qb7 {[%emt 0:05:40]} Bc5 {[%emt 0:01:51]} 22. Bxc5 {[%emt 0:00:30]} Nxc5 {[%emt 0:00:09]} 23. Qb5 {[%emt 0:00:04]} Na4 {[%emt 0:05:09]} 24. Rd4 {[%emt 0:01:16]} Rfc8 {[%emt 0:04:56]} 25. h3 {[%emt 0:06:26]} Nc5 {[%emt 0:01:00]} 26. a4 {[%emt 0:06:08]} Ne6 {[%emt 0:02:32]} 27. Rc4 {[%emt 0:02:03]} Rcb8 {[%emt 0:02:55]} 28. Qc6 {[%emt 0:00:41]} Nd8 {[%emt 0:01:52]} 29. Qf3 {[%emt 0:01:21]} Nd7 {[%emt 0:03:20]} 30. Rb4 {[%emt 0:03:58]} Rc8 {[%emt 0:02:11]} 31. Qe2 {[%emt 0:04:24]} Ne6 {[%emt 0:01:33]} 32. Qb5 {[%emt 0:03:40]} Rcb8 {[%emt 0:04:30]} 33. Qc6 {[%emt 0:02:52]} Rxb4 {[%emt 0:02:10]} 34. Qxa8+ {[%emt 0:00:05]} Nb8 {[%emt 0:00:30]} 35. a5 {[%emt 0:02:24]} Rxb2 {[%emt 0:01:09]} 36. Qd5 {[%emt 0:03:33]} h6 {[%emt 0:01:56]} 37. Qc4 {[%emt 0:00:56]} Kh7 {[%emt 0:00:53]} 38. Qc3 {[%emt 0:05:18]} Rb1+ {[%emt 0:00:41]} 39. Kh2 {[%emt 0:00:14]} Rb7 {[%emt 0:00:15]} 40. Qc8 {[%emt 0:02:17]} Rb2 {[%emt 0:00:33]} 41. Kg3 {[%emt 0:34:08]} Rb5 {[%emt 0:05:49]} 42. a6 {[%emt 0:00:00]} Nxa6 {[%emt 0:00:24]} 43. Qxa6 {[%emt 0:00:00]} Rg5+ {[%emt 0:01:23]} 44. Kh2 {[%emt 0:00:00]} g6 {[%emt 0:01:15]} 45. g4 {[%emt 0:00:00]} Kg7 {[%emt 0:06:44]} 46. Qa1+ {[%emt 0:00:00]} Kg8 {[%emt 0:00:57]} 47. Qf6 {[%emt 0:00:00]} Rd5 {[%emt 0:02:17]} 48. Qb2 {[%emt 0:00:00]} h5 {[%emt 0:02:26]} 49. Qb8+ {[%emt 0:00:00]} Rd8 {[%emt 0:01:23]} 50. Qe5 {[%emt 0:00:00]} hxg4 {[%emt 0:00:49]} 51. hxg4 {[%emt 0:00:00]} g5 {[%emt 0:01:01]} 52. Qf6 {[%emt 0:00:00]} Rd4 {[%emt 0:00:40]} 53. Qf3 {[%emt 0:00:00]} Rf4 {[%emt 0:00:19]} 54. Qa8+ {[%emt 0:00:00]} 1/2-1/2

[Event "106th British-ch Major 2019"]
[Site "Torquay"]
[Date "2019.08.03"]
[Round "8.13"]
[White "Rice, Chris B"]
[Black "Cocks, Elliot"]
[Result "1/2-1/2"]
[ECO "A16"]
[WhiteElo "2040"]
[BlackElo "1907"]
[Annotator "NA"]
[PlyCount "48"]
[EventDate "2019.07.27"]
[EventType "swiss"]
[EventCountry "GBR"]
[SourceTitle "playchess.com"]
[Source "ChessBase"]
[SourceQuality "1"]
[TimeControl "40/5400+30:1800+30"]

1. c4 {[%emt 0:00:40]} Nf6 {[%emt 0:00:00]} 2. g3 {[%emt 0:00:09]} g6 {[%emt 0:00:23]} 3. Bg2 {[%emt 0:00:08]} Bg7 {[%emt 0:00:09]} 4. Nc3 {[%emt 0:00:11]} O-O {[%emt 0:00:32]} 5. d3 {[%emt 0:02:42]} d6 {[%emt 0:01:12]} 6. Bg5 {[%emt 0:00:26]} h6 {[%emt 0:00:40]} 7. Bd2 {[%emt 0:00:07]} e5 {[%emt 0:02:20]} 8. e4 {[%emt 0:01:05]} c5 {[%emt 0:00:43]} 9. Nge2 {[%emt 0:02:07]} Nc6 {[%emt 0:00:09]} 10. O-O {[%emt 0:03:30]} Ne8 {[%emt 0:03:19]} 11. a3 {[%emt 0:06:17]} Nc7 {[%emt 0:04:17]} 12. Rb1 {[%emt 0:02:58]} Rb8 {[%emt 0:04:56]} 13. b4 {[%emt 0:01:09]} cxb4 {[%emt 0:02:04]} 14. axb4 {[%emt 0:00:20]} b5 {[%emt 0:00:04]} 15. cxb5 {[%emt 0:11:50]} Nd4 {[%emt 0:06:58]} 16. Qa4 {[%emt 0:14:12]} Ncxb5 {[%emt 0:02:07]} 17. Nxd4 {[%emt 0:10:33]} Nxc3 {[%emt 0:00:34]} 18. Bxc3 {[%emt 0:00:24]} exd4 {[%emt 0:00:06]} 19. Bd2 {[%emt 0:03:54]} Qb6 {[%emt 0:01:34]} 20. Ra1 {[%emt 0:05:29]} Rb7 {[%emt 0:07:52]} 21. Rfc1 {[%emt 0:17:40]} Bd7 {[%emt 0:01:23]} 22. Qa5 {[%emt 0:02:02]} Bb5 {[%emt 0:03:08]} 23. Qxb6 {[%emt 0:03:37]} Rxb6 {[%emt 0:04:21]} 24. Bf1 {[%emt 0:02:49]} a6 {[%emt 0:01:49]} 1/2-1/2

[Event "106th British-ch Major 2019"]
[Site "Torquay"]
[Date "2019.08.03"]
[Round "8.14"]
[White "Nayak, Raghav"]
[Black "Menadue, Jeremy F S"]
[Result "1/2-1/2"]
[ECO "B23"]
[WhiteElo "1906"]
[BlackElo "2016"]
[Annotator "NA"]
[PlyCount "64"]
[EventDate "2019.07.27"]
[EventType "swiss"]
[EventCountry "GBR"]
[SourceTitle "playchess.com"]
[Source "ChessBase"]
[SourceQuality "1"]
[TimeControl "40/5400+30:1800+30"]

1. e4 {[%emt 0:01:55]} c5 {[%emt 0:03:51]} 2. Nc3 {[%emt 0:00:08]} Nc6 {[%emt 0:00:03]} 3. f4 {[%emt 0:00:05]} g6 {[%emt 0:00:11]} 4. Nf3 {[%emt 0:00:05]} Bg7 {[%emt 0:00:05]} 5. Bc4 {[%emt 0:00:09]} e6 {[%emt 0:00:04]} 6. O-O {[%emt 0:00:07]} Nge7 {[%emt 0:00:03]} 7. Qe1 {[%emt 0:00:05]} O-O {[%emt 0:00:23]} 8. d3 {[%emt 0:00:04]} d5 {[%emt 0:00:33]} 9. Bb3 {[%emt 0:00:05]} b5 {[%emt 0:06:12]} 10. Nxb5 {[%emt 0:04:42]} Qb6 {[%emt 0:00:44]} 11. c4 {[%emt 0:06:44]} dxe4 {[%emt 0:11:19]} 12. dxe4 {[%emt 0:00:49]} Na5 {[%emt 0:00:36]} 13. Qh4 {[%emt 0:04:12]} Nxb3 {[%emt 0:09:31]} 14. axb3 {[%emt 0:01:18]} Nc6 {[%emt 0:01:37]} 15. f5 {[%emt 0:02:12]} exf5 {[%emt 0:16:38]} 16. Bh6 {[%emt 0:01:37]} f6 {[%emt 0:06:35]} 17. Be3 {[%emt 0:17:46]} fxe4 {[%emt 0:01:29]} 18. Qxe4 {[%emt 0:02:16]} Rd8 {[%emt 0:02:19]} 19. Rad1 {[%emt 0:12:49]} Bf5 {[%emt 0:02:46]} 20. Qh4 {[%emt 0:03:04]} Bd3 {[%emt 0:04:15]} 21. Rf2 {[%emt 0:03:25]} a6 {[%emt 0:00:49]} 22. Nc3 {[%emt 0:04:23]} Qxb3 {[%emt 0:00:45]} 23. Rfd2 {[%emt 0:04:23]} Bf5 {[%emt 0:08:43]} 24. Bxc5 {[%emt 0:05:49]} Rxd2 {[%emt 0:03:02]} 25. Rxd2 {[%emt 0:00:26]} Na5 {[%emt 0:00:51]} 26. Rd4 {[%emt 0:09:50]} Qxb2 {[%emt 0:02:45]} 27. Nd5 {[%emt 0:01:54]} Nb3 {[%emt 0:04:52]} 28. Nxf6+ {[%emt 0:03:35]} Bxf6 {[%emt 0:00:10]} 29. Qxf6 {[%emt 0:00:10]} Qb1+ {[%emt 0:01:00]} 30. Kf2 {[%emt 0:00:18]} Nxc5 {[%emt 0:01:05]} 31. Rd8+ {[%emt 0:01:22]} Rxd8 {[%emt 0:00:03]} 32. Qxd8+ {[%emt 0:00:04]} Kg7 {[%emt 0:05:07]} 1/2-1/2

[Event "106th British-ch Major 2019"]
[Site "Torquay"]
[Date "2019.08.03"]
[Round "8.15"]
[White "Cusick, Peter"]
[Black "Sheerin, Alex"]
[Result "0-1"]
[ECO "E69"]
[WhiteElo "1971"]
[BlackElo "1845"]
[Annotator "NA"]
[PlyCount "64"]
[EventDate "2019.07.27"]
[EventType "swiss"]
[EventCountry "GBR"]
[SourceTitle "playchess.com"]
[Source "ChessBase"]
[SourceQuality "1"]
[TimeControl "40/5400+30:1800+30"]

1. d4 {[%emt 0:00:00]} Nf6 {[%emt 0:00:00]} 2. Nf3 {[%emt 0:00:00]} g6 {[%emt 0:00:00]} 3. g3 {[%emt 0:00:00]} Bg7 {[%emt 0:00:00]} 4. Bg2 {[%emt 0:00:00]} O-O {[%emt 0:00:00]} 5. c4 {[%emt 0:00:12]} d6 {[%emt 0:00:00]} 6. Nc3 {[%emt 0:00:06]} Nbd7 {[%emt 0:00:11]} 7. O-O {[%emt 0:00:09]} e5 {[%emt 0:00:11]} 8. h3 {[%emt 0:01:07]} c6 {[%emt 0:00:21]} 9. e4 {[%emt 0:02:05]} Re8 {[%emt 0:03:20]} 10. Re1 {[%emt 0:02:23]} exd4 {[%emt 0:00:12]} 11. Nxd4 {[%emt 0:00:06]} Qb6 {[%emt 0:00:16]} 12. Rb1 {[%emt 0:08:23]} Nxe4 {[%emt 0:11:33]} 13. Nxe4 {[%emt 0:17:47]} Qxd4 {[%emt 0:39:31]} 14. Be3 {[%emt 0:08:15]} Qxd1 {[%emt 0:01:05]} 15. Rexd1 {[%emt 0:00:34]} d5 {[%emt 0:00:43]} 16. cxd5 {[%emt 0:04:35]} cxd5 {[%emt 0:00:08]} 17. Rxd5 {[%emt 0:01:15]} Nb6 {[%emt 0:00:19]} 18. Bxb6 {[%emt 0:20:50]} axb6 {[%emt 0:00:09]} 19. Nd6 {[%emt 0:09:11]} Re2 {[%emt 0:04:34]} 20. Nxc8 {[%emt 0:01:44]} Rxc8 {[%emt 0:00:02]} 21. Rd7 {[%emt 0:01:57]} Rcc2 {[%emt 0:01:49]} 22. Rf1 {[%emt 0:02:44]} Rxb2 {[%emt 0:10:13]} 23. Bd5 {[%emt 0:06:17]} Red2 {[%emt 0:05:04]} 24. Rc1 {[%emt 0:03:27]} Bd4 {[%emt 0:02:35]} 25. Rxf7 {[%emt 0:02:37]} Bc5 {[%emt 0:01:55]} 26. Rd7+ {[%emt 0:02:53]} Kh8 {[%emt 0:00:32]} 27. Rd8+ {[%emt 0:01:01]} Kg7 {[%emt 0:00:03]} 28. Rg8+ {[%emt 0:00:09]} Kh6 {[%emt 0:00:26]} 29. Rd8 {[%emt 0:02:49]} Rxf2 {[%emt 0:01:05]} 30. Rxc5 {[%emt 0:00:35]} bxc5 {[%emt 0:00:10]} 31. g4 {[%emt 0:00:34]} Rfd2 {[%emt 0:00:17]} 32. g5+ {[%emt 0:00:22]} Kxg5 {[%emt 0:00:10]} 0-1

[Event "106th British-ch Major 2019"]
[Site "Torquay"]
[Date "2019.08.03"]
[Round "8.16"]
[White "Wilson, Matthew R"]
[Black "Brown, Tom"]
[Result "1/2-1/2"]
[ECO "B13"]
[WhiteElo "1817"]
[BlackElo "1953"]
[Annotator "NA"]
[PlyCount "90"]
[EventDate "2019.07.27"]
[EventType "swiss"]
[EventCountry "GBR"]
[SourceTitle "playchess.com"]
[Source "ChessBase"]
[SourceQuality "1"]
[TimeControl "40/5400+30:1800+30"]

1. e4 {[%emt 0:00:00]} c6 {[%emt 0:00:00]} 2. d4 {[%emt 0:00:00]} d5 {[%emt 0:00:00]} 3. exd5 {[%emt 0:00:00]} cxd5 {[%emt 0:00:00]} 4. Bd3 {[%emt 0:00:00]} Nc6 {[%emt 0:00:00]} 5. c3 {[%emt 0:00:00]} Nf6 {[%emt 0:00:14]} 6. Bf4 {[%emt 0:00:00]} g6 {[%emt 0:00:14]} 7. Nd2 {[%emt 0:02:07]} Bg7 {[%emt 0:00:17]} 8. Ngf3 {[%emt 0:00:14]} O-O {[%emt 0:00:34]} 9. O-O {[%emt 0:00:08]} Bf5 {[%emt 0:01:05]} 10. Bxf5 {[%emt 0:00:38]} gxf5 {[%emt 0:00:08]} 11. Ne5 {[%emt 0:03:44]} e6 {[%emt 0:01:22]} 12. Qe2 {[%emt 0:03:04]} Ne7 {[%emt 0:06:19]} 13. a4 {[%emt 0:13:10]} Ng6 {[%emt 0:06:12]} 14. Nxg6 {[%emt 0:01:26]} hxg6 {[%emt 0:00:21]} 15. Be5 {[%emt 0:06:36]} Qb6 {[%emt 0:06:39]} 16. Qb5 {[%emt 0:01:58]} Rfc8 {[%emt 0:11:07]} 17. Qxb6 {[%emt 0:04:05]} axb6 {[%emt 0:00:04]} 18. f3 {[%emt 0:02:03]} Ra6 {[%emt 0:07:18]} 19. Ra3 {[%emt 0:11:24]} b5 {[%emt 0:04:25]} 20. Rfa1 {[%emt 0:14:34]} bxa4 {[%emt 0:08:30]} 21. Rxa4 {[%emt 0:00:15]} Rca8 {[%emt 0:02:49]} 22. Rxa6 {[%emt 0:00:46]} Rxa6 {[%emt 0:02:14]} 23. Rxa6 {[%emt 0:00:14]} bxa6 {[%emt 0:00:03]} 24. Nb3 {[%emt 0:04:49]} Nd7 {[%emt 0:02:43]} 25. Bxg7 {[%emt 0:07:27]} Kxg7 {[%emt 0:05:05]} 26. g4 {[%emt 0:02:41]} fxg4 {[%emt 0:02:35]} 27. fxg4 {[%emt 0:00:15]} g5 {[%emt 0:00:35]} 28. Nc5 {[%emt 0:05:31]} Nxc5 {[%emt 0:05:35]} 29. dxc5 {[%emt 0:00:01]} Kf6 {[%emt 0:00:54]} 30. b4 {[%emt 0:00:38]} Ke7 {[%emt 0:05:01]} 31. Kf2 {[%emt 0:04:09]} Kd7 {[%emt 0:01:10]} 32. Ke3 {[%emt 0:03:12]} e5 {[%emt 0:00:51]} 33. Kd3 {[%emt 0:04:50]} Kc6 {[%emt 0:00:56]} 34. c4 {[%emt 0:02:33]} d4 {[%emt 0:01:09]} 35. Ke4 {[%emt 0:00:54]} f6 {[%emt 0:04:27]} 36. Kd3 {[%emt 0:02:07]} a5 {[%emt 0:00:26]} 37. bxa5 {[%emt 0:00:15]} Kxc5 {[%emt 0:00:10]} 38. Ke4 {[%emt 0:01:51]} Kc6 {[%emt 0:01:02]} 39. Kd3 {[%emt 0:00:23]} Kc5 {[%emt 0:11:04]} 40. h3 {[%emt 0:00:12]} Kc6 {[%emt 0:02:41]} 41. Ke4 {[%emt 0:30:22]} Kb7 {[%emt 0:20:22]} 42. c5 {[%emt 0:00:00]} Kc6 {[%emt 0:01:48]} 43. a6 {[%emt 0:00:00]} Kc7 {[%emt 0:00:52]} 44. Kd3 {[%emt 0:00:00]} Kc6 {[%emt 0:01:05]} 45. Ke4 {[%emt 0:00:00]} Kc7 {[%emt 0:00:17]} 1/2-1/2

[Event "106th British-ch Major 2019"]
[Site "Torquay"]
[Date "2019.08.03"]
[Round "8.17"]
[White "Camp, Imogen Al"]
[Black "Barton, R Alan"]
[Result "1/2-1/2"]
[ECO "D08"]
[WhiteElo "1850"]
[BlackElo "1941"]
[Annotator "NA"]
[PlyCount "108"]
[EventDate "2019.07.27"]
[EventType "swiss"]
[EventCountry "GBR"]
[SourceTitle "playchess.com"]
[Source "ChessBase"]
[SourceQuality "1"]
[TimeControl "40/5400+30:1800+30"]

1. d4 {[%emt 0:00:00]} d5 {[%emt 0:00:00]} 2. c4 {[%emt 0:00:00]} e5 {[%emt 0:00:21]} 3. dxe5 {[%emt 0:00:00]} d4 {[%emt 0:00:21]} 4. Nf3 {[%emt 0:00:16]} Nc6 {[%emt 0:00:02]} 5. a3 {[%emt 0:00:35]} a5 {[%emt 0:02:46]} 6. e3 {[%emt 0:02:12]} Bc5 {[%emt 0:07:37]} 7. exd4 {[%emt 0:03:12]} Bxd4 {[%emt 0:02:11]} 8. Nxd4 {[%emt 0:09:34]} Qxd4 {[%emt 0:00:05]} 9. Nc3 {[%emt 0:08:32]} Qxd1+ {[%emt 0:04:09]} 10. Nxd1 {[%emt 0:00:38]} Nxe5 {[%emt 0:04:25]} 11. Bf4 {[%emt 0:00:18]} f6 {[%emt 0:11:44]} 12. Nc3 {[%emt 0:02:41]} Bf5 {[%emt 0:03:41]} 13. O-O-O {[%emt 0:03:11]} Ne7 {[%emt 0:03:00]} 14. Nb5 {[%emt 0:04:54]} O-O {[%emt 0:03:12]} 15. Nxc7 {[%emt 0:07:48]} Rac8 {[%emt 0:00:11]} 16. Bxe5 {[%emt 0:00:23]} fxe5 {[%emt 0:00:11]} 17. Nb5 {[%emt 0:01:21]} Be6 {[%emt 0:04:32]} 18. Nd6 {[%emt 0:00:54]} Rc7 {[%emt 0:02:40]} 19. f3 {[%emt 0:03:29]} Nf5 {[%emt 0:02:13]} 20. Nxf5 {[%emt 0:04:18]} Rxf5 {[%emt 0:01:46]} 21. Bd3 {[%emt 0:03:57]} Rf8 {[%emt 0:01:04]} 22. Rhe1 {[%emt 0:01:31]} Bxc4 {[%emt 0:11:30]} 23. Bxc4+ {[%emt 0:00:12]} Rxc4+ {[%emt 0:00:04]} 24. Kb1 {[%emt 0:00:03]} Rc5 {[%emt 0:04:06]} 25. Re4 {[%emt 0:02:47]} h6 {[%emt 0:03:52]} 26. Rde1 {[%emt 0:01:08]} Rf5 {[%emt 0:03:43]} 27. R1e3 {[%emt 0:01:00]} h5 {[%emt 0:02:48]} 28. g4 {[%emt 0:09:46]} hxg4 {[%emt 0:00:14]} 29. fxg4 {[%emt 0:00:34]} Rf1+ {[%emt 0:01:22]} 30. Ka2 {[%emt 0:01:07]} Rcc1 {[%emt 0:06:58]} 31. Kb3 {[%emt 0:02:21]} Rf2 {[%emt 0:01:46]} 32. Rxe5 {[%emt 0:11:48]} Rcc2 {[%emt 0:00:10]} 33. Rxa5 {[%emt 0:01:05]} Rxb2+ {[%emt 0:00:29]} 34. Kc4 {[%emt 0:00:33]} Rxh2 {[%emt 0:02:13]} 35. Ra7 {[%emt 0:03:33]} Rhg2 {[%emt 0:00:47]} 36. Re4 {[%emt 0:01:58]} Kf7 {[%emt 0:02:12]} 37. Kd5 {[%emt 0:00:20]} Kf6 {[%emt 0:02:02]} 38. Kd6 {[%emt 0:00:48]} Rgc2 {[%emt 0:02:38]} 39. Raa4 {[%emt 0:04:24]} Rc6+ {[%emt 0:03:09]} 40. Kd5 {[%emt 0:01:11]} Rd2+ {[%emt 0:01:27]} 41. Red4 {[%emt 0:31:24]} Rxd4+ {[%emt 0:30:43]} 42. Rxd4 {[%emt 0:00:22]} Kg5 {[%emt 0:00:00]} 43. a4 {[%emt 0:00:00]} g6 {[%emt 0:00:00]} 44. Rb4 {[%emt 0:00:00]} Ra6 {[%emt 0:00:00]} 45. Kc5 {[%emt 0:00:00]} Kh4 {[%emt 0:00:00]} 46. Rb6 {[%emt 0:00:00]} Kxg4 {[%emt 0:00:00]} 47. Rxa6 {[%emt 0:00:00]} bxa6 {[%emt 0:00:00]} 48. Kb6 {[%emt 0:00:00]} g5 {[%emt 0:00:00]} 49. Kxa6 {[%emt 0:00:00]} Kf4 {[%emt 0:00:00]} 50. Kb7 {[%emt 0:00:00]} g4 {[%emt 0:00:00]} 51. a5 {[%emt 0:00:00]} g3 {[%emt 0:00:00]} 52. a6 {[%emt 0:00:00]} g2 {[%emt 0:00:00]} 53. a7 {[%emt 0:00:00]} g1=Q {[%emt 0:00:00]} 54. a8=Q {[%emt 0:00:00]} Ke4 {[%emt 0:01:42]} 1/2-1/2

[Event "106th British-ch Major 2019"]
[Site "Torquay"]
[Date "2019.08.03"]
[Round "8.18"]
[White "Hosdurga, Chirag"]
[Black "Foster, Timothy"]
[Result "1/2-1/2"]
[ECO "E76"]
[WhiteElo "1926"]
[BlackElo "1852"]
[Annotator "NA"]
[PlyCount "58"]
[EventDate "2019.07.27"]
[EventType "swiss"]
[EventCountry "GBR"]
[SourceTitle "playchess.com"]
[Source "ChessBase"]
[SourceQuality "1"]
[TimeControl "40/5400+30:1800+30"]

1. d4 {[%emt 0:56:28]} Nf6 {[%emt 0:01:48]} 2. c4 {[%emt 0:00:08]} g6 {[%emt 0:00:04]} 3. Nc3 {[%emt 0:00:06]} Bg7 {[%emt 0:00:04]} 4. e4 {[%emt 0:00:06]} d6 {[%emt 0:00:04]} 5. f4 {[%emt 0:00:05]} c5 {[%emt 0:00:22]} 6. d5 {[%emt 0:00:09]} O-O {[%emt 0:00:10]} 7. Nf3 {[%emt 0:00:02]} e6 {[%emt 0:00:05]} 8. dxe6 {[%emt 0:00:05]} fxe6 {[%emt 0:00:04]} 9. Bd3 {[%emt 0:00:08]} Nc6 {[%emt 0:00:05]} 10. O-O {[%emt 0:00:06]} Nd4 {[%emt 0:00:32]} 11. Bd2 {[%emt 0:00:09]} e5 {[%emt 0:00:04]} 12. Nxd4 {[%emt 0:03:50]} cxd4 {[%emt 0:00:26]} 13. Nd5 {[%emt 0:00:23]} exf4 {[%emt 0:01:25]} 14. Bxf4 {[%emt 0:02:47]} Be6 {[%emt 0:03:57]} 15. h3 {[%emt 0:08:38]} Nh5 {[%emt 0:04:18]} 16. Qd2 {[%emt 0:08:22]} Bxd5 {[%emt 0:02:50]} 17. Bg5 {[%emt 0:02:23]} Bf6 {[%emt 0:12:40]} 18. Bxf6 {[%emt 0:00:34]} Rxf6 {[%emt 0:00:06]} 19. cxd5 {[%emt 0:00:46]} Ng3 {[%emt 0:02:34]} 20. Rfe1 {[%emt 0:02:14]} Qe7 {[%emt 0:00:53]} 21. Bc2 {[%emt 0:13:44]} Qe5 {[%emt 0:05:16]} 22. Bd1 {[%emt 0:10:27]} Nxe4 {[%emt 0:27:16]} 23. Qc2 {[%emt 0:00:17]} Re8 {[%emt 0:01:19]} 24. Bf3 {[%emt 0:00:05]} Rf4 {[%emt 0:00:05]} 25. Rad1 {[%emt 0:00:31]} Qxd5 {[%emt 0:01:16]} 26. Qa4 Re5 {[%emt 0:12:29]} 27. Rxd4 {[%emt 0:08:44]} Qc5 {[%emt 0:00:12]} 28. Kh2 {[%emt 0:00:22]} d5 {[%emt 0:03:40]} 29. Bxe4 {[%emt 0:01:48]} Rfxe4 {[%emt 0:06:24]} 1/2-1/2

[Event "106th British-ch Major 2019"]
[Site "Torquay"]
[Date "2019.08.03"]
[Round "8.19"]
[White "Rathbone-Jones, Ifan"]
[Black "Merriman, James"]
[Result "1-0"]
[ECO "E13"]
[WhiteElo "1855"]
[BlackElo "1808"]
[Annotator "NA"]
[PlyCount "57"]
[EventDate "2019.07.27"]
[EventType "swiss"]
[EventCountry "GBR"]
[SourceTitle "playchess.com"]
[Source "ChessBase"]
[SourceQuality "1"]
[TimeControl "40/5400+30:1800+30"]

1. d4 {[%emt 0:00:00]} e6 {[%emt 0:06:43]} 2. c4 {[%emt 0:00:21]} Nf6 {[%emt 0:00:06]} 3. Nc3 {[%emt 0:00:06]} Bb4 {[%emt 0:00:05]} 4. Nf3 {[%emt 0:00:14]} b6 {[%emt 0:00:06]} 5. Bg5 {[%emt 0:00:24]} Bb7 {[%emt 0:01:11]} 6. e3 {[%emt 0:00:42]} h6 {[%emt 0:00:06]} 7. Bh4 {[%emt 0:00:13]} g5 {[%emt 0:00:29]} 8. Bg3 {[%emt 0:00:24]} Ne4 {[%emt 0:00:10]} 9. Qc2 {[%emt 0:00:25]} f5 {[%emt 0:01:37]} 10. Bd3 {[%emt 0:03:16]} d6 {[%emt 0:01:19]} 11. Qa4+ {[%emt 0:10:23]} Nc6 {[%emt 0:00:53]} 12. Bxe4 {[%emt 0:02:57]} fxe4 {[%emt 0:00:23]} 13. Nd2 {[%emt 0:01:13]} Bxc3 {[%emt 0:08:15]} 14. bxc3 {[%emt 0:00:05]} d5 {[%emt 0:01:18]} 15. cxd5 {[%emt 0:06:32]} exd5 {[%emt 0:00:12]} 16. c4 {[%emt 0:00:04]} h5 {[%emt 0:02:43]} 17. Bxc7 {[%emt 0:04:16]} Qxc7 {[%emt 0:02:59]} 18. cxd5 {[%emt 0:00:03]} O-O-O {[%emt 0:05:01]} 19. dxc6 {[%emt 0:00:26]} Bxc6 {[%emt 0:00:50]} 20. Qc2 {[%emt 0:03:18]} Rhe8 {[%emt 0:03:17]} 21. Rc1 {[%emt 0:00:30]} Kb7 {[%emt 0:00:26]} 22. Nc4 {[%emt 0:01:32]} Re6 {[%emt 0:06:34]} 23. O-O {[%emt 0:01:46]} Qh7 {[%emt 0:02:59]} 24. Ne5 {[%emt 0:01:14]} Rdd6 {[%emt 0:02:21]} 25. Rfd1 {[%emt 0:02:53]} h4 {[%emt 0:02:07]} 26. d5 {[%emt 0:00:16]} Rxe5 {[%emt 0:02:12]} 27. dxc6+ {[%emt 0:00:10]} Kc7 {[%emt 0:00:51]} 28. Rxd6 {[%emt 0:00:03]} Kxd6 {[%emt 0:00:30]} 29. c7 {[%emt 0:00:13]} 1-0

[Event "106th British-ch Major 2019"]
[Site "Torquay"]
[Date "2019.08.03"]
[Round "8.20"]
[White "Howell, Oliver W"]
[Black "Young, Daniel J"]
[Result "0-1"]
[ECO "A37"]
[WhiteElo "1797"]
[BlackElo "1971"]
[Annotator "NA"]
[PlyCount "44"]
[EventDate "2019.07.27"]
[EventType "swiss"]
[EventCountry "GBR"]
[SourceTitle "playchess.com"]
[Source "ChessBase"]
[SourceQuality "1"]
[TimeControl "40/5400+30:1800+30"]

1. Nf3 {[%emt 0:00:00]} c5 {[%emt 0:00:00]} 2. c4 {[%emt 0:00:00]} g6 {[%emt 0:00:00]} 3. g3 {[%emt 0:00:00]} Bg7 {[%emt 0:00:00]} 4. Bg2 {[%emt 0:00:00]} Nc6 {[%emt 0:00:06]} 5. O-O {[%emt 0:00:18]} d6 {[%emt 0:00:10]} 6. Nc3 {[%emt 0:00:44]} e6 {[%emt 0:00:16]} 7. e3 {[%emt 0:03:59]} Nge7 {[%emt 0:00:33]} 8. d4 {[%emt 0:01:39]} O-O {[%emt 0:01:58]} 9. d5 {[%emt 0:18:17]} Na5 {[%emt 0:00:22]} 10. Qd3 {[%emt 0:01:34]} Rb8 {[%emt 0:05:09]} 11. Rb1 {[%emt 0:06:38]} exd5 {[%emt 0:01:47]} 12. cxd5 {[%emt 0:03:02]} b5 {[%emt 0:02:10]} 13. e4 {[%emt 0:02:13]} b4 {[%emt 0:06:17]} 14. Ne2 {[%emt 0:03:12]} Bd7 {[%emt 0:05:47]} 15. b3 {[%emt 0:03:42]} Bb5 {[%emt 0:01:45]} 16. Qc2 {[%emt 0:00:56]} Re8 {[%emt 0:03:36]} 17. Bb2 {[%emt 0:02:02]} Nxd5 {[%emt 0:01:17]} 18. Bxg7 {[%emt 0:05:39]} Kxg7 {[%emt 0:00:39]} 19. Rfc1 {[%emt 0:16:45]} Bxe2 {[%emt 0:01:03]} 20. Qxe2 {[%emt 0:00:01]} Nc3 {[%emt 0:00:24]} 21. Qb2 {[%emt 0:00:14]} Qf6 {[%emt 0:01:51]} 22. Ra1 {[%emt 0:05:01]} Rxe4 {[%emt 0:01:22]} 0-1